fUST/lending_fUST_20241013
["ID","MTS","AMOUNT","RATE_DAILY","PERIOD"]
[340182186,1728785372927,-166.05404334,0.00038,7]
[340182187,1728785372953,-1390.87,0.00038356,2]
[340182188,1728785372976,-1390.87,0.0003863,2]
[340182189,1728785372999,-335.46923547,0.00038667,5]
[340182190,1728785373022,-268.11735596,0.00038795,7]
[340182191,1728785373045,-1390.87,0.00038904,2]
[340182192,1728785373066,-272.90402714,0.00039,2]
[340182193,1728785373090,-1390.87,0.00039178,2]
[340182194,1728785373116,-153.0,0.00039341,120]
[340182195,1728785373141,-153.0,0.00039341,120]
[340182196,1728785373166,-153.0,0.00039341,120]
[340182197,1728785373190,-153.0,0.00039341,120]
[340182198,1728785373213,-153.0,0.00039341,120]
[340182199,1728785373237,-153.0,0.00039341,120]
[340182200,1728785373260,-153.0,0.00039341,120]
[340182201,1728785373284,-153.0,0.00039341,120]
[340182202,1728785373307,-153.0,0.00039341,120]
[340182203,1728785373329,-153.0,0.00039341,120]
[340182204,1728785373352,-153.0,0.00039341,120]
[340182205,1728785373375,-153.0,0.00039341,120]
[340182206,1728785373398,-153.0,0.00039341,120]
[340182207,1728785373421,-153.0,0.00039341,120]
[340182208,1728785373444,-153.0,0.00039341,120]
[340182209,1728785373469,-153.0,0.00039341,120]
[340182210,1728785373493,-153.0,0.00039341,120]
[340182211,1728785373515,-153.0,0.00039341,120]
[340182212,1728785373538,-153.0,0.00039341,120]
[340182213,1728785373564,-153.0,0.00039341,120]
[340182214,1728785373589,-153.0,0.00039341,120]
[340182215,1728785373612,-153.0,0.00039341,120]
[340182216,1728785373636,-153.0,0.00039341,120]
[340182217,1728785373660,-153.0,0.00039341,120]
[340182218,1728785373682,-153.0,0.00039341,120]
[340182219,1728785373707,-153.0,0.00039341,120]
[340182220,1728785373730,-61.91841111,0.00039341,120]
[340182242,1728785432035,-255.01268342,0.00036713,2]
[340182243,1728785432106,-144.98731658,0.00036713,2]
[340182245,1728785432116,-400.0,0.00036713,2]
[340182246,1728785432125,-593.54557243,0.00036714,2]
[340182247,1728785432136,-3611.56349653,0.00036714,2]
[340182248,1728785432147,-516.1327671,0.00036714,2]
[340182268,1728785438129,-534.46,0.00036714,2]
[340182271,1728785438538,-546.17185433,0.00036714,2]
[340182272,1728785438796,-52.72939002,0.00036714,2]
[340182273,1728785438922,-19045.39691959,0.00036714,2]
[340182274,1728785438932,-560.0,0.00039295,5]
[340182275,1728785438942,-91.08158889,0.00039341,120]
[340182276,1728785438951,-153.0,0.00039341,120]
[340182277,1728785438960,-153.0,0.00039341,120]
[340182278,1728785438970,-153.0,0.00039341,120]
[340182279,1728785438979,-153.0,0.00039341,120]
[340182280,1728785438988,-153.0,0.00039341,120]
[340182281,1728785439000,-153.0,0.00039341,120]
[340182282,1728785439010,-153.0,0.00039341,120]
[340182283,1728785439019,-153.0,0.00039341,120]
[340182284,1728785439030,-153.0,0.00039341,120]
[340182285,1728785439041,-153.0,0.00039341,120]
[340182286,1728785439052,-153.0,0.00039341,120]
[340182287,1728785439062,-153.0,0.00039341,120]
[340182288,1728785439072,-153.0,0.00039343,120]
[340182289,1728785439083,-153.0,0.00039343,120]
[340182290,1728785439094,-153.0,0.00039343,120]
[340182291,1728785439104,-153.0,0.00039343,120]
[340182292,1728785439114,-1390.87,0.00039452,2]
[340182293,1728785439126,-152.60274141,0.00039452,14]
[340182294,1728785439136,-1390.87,0.00039726,2]
[340182295,1728785439147,-384.23147293,0.00039752,2]
[340182296,1728785439157,-257.76,0.00039841,3]
[340182297,1728785439168,-773.3,0.00039841,3]
[340182298,1728785439179,-2127.62,0.00039842,10]
[340182299,1728785439188,-1773.02,0.00039842,10]
[340182300,1728785439198,-2949.79,0.00039842,10]
[340182301,1728785439207,-2458.16,0.00039842,10]
[340182302,1728785439219,-2048.47,0.00039842,10]
[340182303,1728785439229,-225.0,0.00039849,31]
[340182304,1728785439238,-152.66557121,0.00039849,31]
[340182305,1728785439248,-430.52280705,0.00039849,31]
[340182306,1728785439258,-348.23589951,0.0003985,31]
[340182307,1728785439267,-383.87753881,0.0003985,31]
[340182308,1728785439276,-219.71308607,0.0003985,31]
[340182309,1728785439286,-546.01951636,0.0003985,31]
[340182310,1728785439295,-177.81235721,0.0003985,31]
[340182311,1728785439304,-66487.5139702,0.00039851,5]
[340182312,1728785439313,-93279.080286,0.00039851,6]
[340182313,1728785439323,-1000.0,0.00039861,3]
[340182314,1728785439333,-8677.47784234,0.00039871,2]
[340182315,1728785439344,-345.72756834,0.00039873,5]
[340182316,1728785439355,-304.87059952,0.00039873,5]
[340182317,1728785439365,-500.0,0.00039873,5]
[340182318,1728785439374,-384.23147292,0.00039881,2]
[340182319,1728785439384,-3990.58676569,0.00039998,2]
[340182320,1728785439396,-1390.87,0.0004,2]
[340182321,1728785439406,-1000.0,0.0004,30]
[340182322,1728785439417,-1000.0,0.0004,15]
[340182323,1728785439429,-223.3464453,0.0004,2]
[340182325,1728785439584,-144.71223541,0.0004,2]
[340182368,1728785440127,-130.75553029,0.0004,2]
[340182370,1728785440138,-384.23147292,0.0004001,2]
[340182372,1728785440149,-384.23147292,0.00040138,2]
[340182375,1728785440170,-384.23147292,0.00040267,2]
[340182376,1728785440187,-541.23806229,0.00040273,5]
[340182377,1728785440197,-500.27822298,0.00040273,5]
[340182378,1728785440207,-177.22660455,0.00040273,5]
[340182379,1728785440217,-500.0,0.00040273,5]
[340182380,1728785440227,-500.0,0.00040273,5]
[340182381,1728785440236,-500.0,0.00040273,5]
[340182382,1728785440246,-500.0,0.00040273,5]
[340182383,1728785440256,-1390.87,0.00040273,2]
[340182384,1728785440266,-66487.5139702,0.0004029,6]
[340182385,1728785440276,-93279.080286,0.0004029,6]
[340182386,1728785440287,-24665.11361639,0.000403,61]
[340182387,1728785440297,-150.112233,0.000403,10]
[340182388,1728785440306,-159.075058,0.000403,10]
[340182389,1728785440316,-162.53085409,0.00040347,30]
[340182390,1728785440326,-47266.50025394,0.00040357,26]
[340182391,1728785440336,-151.0,0.00040357,14]
[340182392,1728785440346,-151.0,0.00040357,14]
[340182393,1728785440355,-151.0,0.00040357,14]
[340182394,1728785440366,-151.0,0.00040357,14]
[340182395,1728785440376,-151.0,0.00040357,14]
[340182396,1728785440385,-151.0,0.00040357,14]
[340182397,1728785440395,-151.0,0.00040357,14]
[340182398,1728785440406,-151.0,0.00040357,14]
[340182399,1728785440419,-31202.32800097,0.00040357,6]
[340182416,1728785443016,-11277.75415334,0.00040357,6]
[340182418,1728785445920,-7535.80154896,0.00040357,6]
[340182419,1728785445933,-14462.70679326,0.00040357,6]
[340182421,1728785479083,158.0,0.0003187,2]
[340182433,1728786337107,-166.666666,0.00032068,2]
[340182434,1728786337131,-190.63850674,0.0003284,2]
[340182435,1728786429118,-59.36149326,0.0003284,2]
[340182436,1728786429141,-254.88243493,0.00032877,2]
[340182437,1728786429167,-87.60025452,0.0003293,2]
[340182438,1728786429198,-162.39974548,0.0003293,2]
[340182439,1728786429223,-250.0,0.0003302,2]
[340182440,1728786429249,-41.75030572,0.0003311,2]
[340182441,1728786452115,-208.24969428,0.0003311,2]
[340182442,1728786452139,-250.0,0.000332,2]
[340182443,1728786452162,-99.37993666,0.0003329,2]
[340182444,1728786499898,5529.93,0.0002,2]
[340182445,1728786499922,2784.59,0.0002,2]
[340182446,1728786499950,12936.47167053,0.0002,2]
[340182448,1728786521720,36531.29095889,0.00020377,2]
[340182449,1728786521974,1860.1597209,0.0002,2]
[340182450,1728786523681,349.37266179,0.0002,2]
[340182451,1728786524158,157.77004561,0.0002,2]
[340182457,1728786545110,-300.0,0.00025089,2]
[340182458,1728786545148,-300.0,0.00025089,2]
[340182459,1728786545178,-19546.23604746,0.0002509,2]
[340182460,1728786545209,-420.0,0.00027177,2]
[340182461,1728786545238,-420.0,0.00027598,2]
[340182462,1728786545267,-153.36773726,0.00028887,2]
[340182463,1728786545295,-587.0,0.00029439,2]
[340182464,1728786545324,-587.0,0.00030358,2]
[340182465,1728786545352,-823.0,0.0003189,2]
[340182466,1728786549927,158.0,0.0003187,2]
[340182467,1728786551103,-150.62006334,0.0003329,2]
[340182468,1728786551125,-250.0,0.00033381,2]
[340182469,1728786551146,-823.0,0.00033393,2]
[340182470,1728786551169,-250.0,0.00033471,2]
[340182471,1728786551190,-166.666666,0.00033525,2]
[340182472,1728786551214,-250.0,0.00033561,2]
[340182473,1728786551238,-2904.5215243,0.00033568,2]
[340182474,1728786551260,-250.0,0.00033651,2]
[340182475,1728786551282,-250.0,0.00033741,2]
[340182476,1728786551304,-250.0,0.00033831,2]
[340182477,1728786551326,-250.0,0.00033921,2]
[340182478,1728786551349,-250.0,0.00034011,2]
[340182479,1728786551372,-250.0,0.00034101,2]
[340182480,1728786551394,-250.0,0.00034191,2]
[340182481,1728786551416,-250.0,0.00034281,2]
[340182482,1728786551435,-250.0,0.00034361,2]
[340182483,1728786551457,-250.0,0.00034371,2]
[340182484,1728786551479,-250.0,0.00034461,2]
[340182485,1728786551500,-1152.0,0.00034544,2]
[340182486,1728786551522,-250.0,0.00034551,2]
[340182487,1728786551545,-1816.13831518,0.00034848,2]
[340182488,1728786551565,-1111.0,0.00034849,120]
[340182489,1728786551586,-166.666666,0.00034982,2]
[340182490,1728786551617,-302.42545213,0.00035,2]
[340182491,1728786551638,-878.26716756,0.00035,2]
[340182492,1728786551658,-679.95410069,0.00035,7]
[340182493,1728786551679,-302.42545213,0.00035,2]
[340182494,1728786551699,-302.42545213,0.0003535,2]
[340182495,1728786551720,-302.42545213,0.0003535,2]
[340182496,1728786554439,500.0,0.0002255,2]
[340182497,1728786554488,290.63477805,0.0002392,2]
[340182498,1728786557446,459.278889,0.00033897,2]
[340182503,1728786570136,-302.42545213,0.000357,2]
[340182504,1728786570157,-302.42545213,0.000357,2]
[340182505,1728786570179,-441.37485931,0.000359,2]
[340182506,1728786570200,-1852.75073699,0.00035988,2]
[340182507,1728786570222,-2671.92788809,0.00036,30]
[340182508,1728786570244,-7363.42969338,0.00036,15]
[340182509,1728786570265,-302.42545213,0.0003605,2]
[340182510,1728786570286,-302.42545213,0.0003605,2]
[340182511,1728786570307,-7203.78421164,0.00036088,2]
[340182512,1728786570329,-500.0,0.00036175,5]
[340182513,1728786570351,-501.42109849,0.00036175,5]
[340182514,1728786570371,-186.0,0.00036189,2]
[340182515,1728786570393,-500.0,0.00036189,15]
[340182516,1728786570415,-500.0,0.00036189,15]
[340182517,1728786570437,-500.0,0.00036189,15]
[340182518,1728786570459,-436.93436076,0.00036189,15]
[340182519,1728786573205,642.66474532,0.0002255,2]
[340182520,1728786573789,502.31463224,0.0002255,2]
[340182526,1728786591506,210.10348243,0.00032877,2]
[340182527,1728786591975,1111.0,0.00034849,120]
[340182528,1728786593925,309.24883236,0.0002255,2]
[340182529,1728786605039,150.0,0.00025,120]
[340182531,1728786608955,1038.180365,0.0003501,2]
[340182535,1728786624313,442.80809247,0.0003501,14]
[340182636,1728786640147,-1038.180365,0.00035695,2]
[340182638,1728786640157,-441.37485931,0.00035925,2]
[340182640,1728786640166,-234.22667187,0.0003595,2]
[340182642,1728786640178,-207.14818744,0.0003595,2]
[340182644,1728786640188,-400.0,0.00036188,2]
[340182646,1728786640197,-400.0,0.00036188,2]
[340182648,1728786640207,-268.0,0.0003619,2]
[340182650,1728786640216,-24900.0,0.0003619,2]
[340182652,1728786640225,-311.16673681,0.000362,5]
[340182654,1728786640235,-535.92668427,0.000362,5]
[340182656,1728786640245,-500.0,0.000362,5]
[340182657,1728786640254,-500.0,0.000362,5]
[340182658,1728786640263,-304.87059952,0.000362,5]
[340182659,1728786640272,-500.0,0.000362,5]
[340182660,1728786640282,-500.0,0.000362,5]
[340182661,1728786640292,-541.23806229,0.000362,5]
[340182662,1728786640301,-500.27822298,0.000362,5]
[340182663,1728786640310,-500.0,0.0003622,5]
[340182664,1728786640320,-259.66528478,0.0003624,2]
[340182665,1728786640330,-169.228346,0.00036369,2]
[340182671,1728786640404,-1038.180365,0.0003638,2]
[340182673,1728786640432,-310.72000005,0.00036399,15]
[340182675,1728786640443,-500.0,0.00036399,15]
[340182677,1728786640453,-500.0,0.00036399,15]
[340182679,1728786640463,-500.0,0.00036399,15]
[340182681,1728786640474,-500.0,0.00036399,15]
[340182683,1728786640484,-526.64107883,0.00036399,15]
[340182684,1728786640494,-301.65217748,0.00036399,15]
[340182686,1728786640504,-500.0,0.00036399,15]
[340182688,1728786640516,-500.0,0.00036399,15]
[340182689,1728786640526,-500.0,0.00036399,15]
[340182690,1728786640537,-500.0,0.00036399,15]
[340182691,1728786640548,-643.15045895,0.00036399,15]
[340182692,1728786640558,-500.0,0.00036399,15]
[340182693,1728786640570,-500.0,0.00036399,15]
[340182694,1728786640580,-500.0,0.00036399,15]
[340182695,1728786640590,-500.0,0.00036399,15]
[340182696,1728786640600,-500.0,0.00036399,15]
[340182697,1728786640609,-500.0,0.00036399,15]
[340182698,1728786640618,-500.0,0.00036399,15]
[340182699,1728786640628,-500.0,0.00036399,15]
[340182700,1728786640640,-500.0,0.00036399,15]
[340182701,1728786640651,-302.42545213,0.000364,2]
[340182702,1728786640659,-302.42545213,0.000364,2]
[340182703,1728786640670,-166.666666,0.00036439,2]
[340182704,1728786640682,-500.30102556,0.0003674,5]
[340182705,1728786640691,-453.63817819,0.0003675,4]
[340182706,1728786640700,-435.03524193,0.0003675,4]
[340182707,1728786640710,-158.34603031,0.00036822,2]
[340182708,1728786640719,-504.09472035,0.000369,5]
[340182709,1728786640733,-500.0,0.000369,5]
[340182710,1728786640743,-453.63817819,0.000371,4]
[340182711,1728786640753,-453.63817819,0.0003745,4]
[340182712,1728786640764,-502.86298975,0.00037545,5]
[340182713,1728786640776,-500.0,0.0003757,5]
[340182714,1728786640787,-1000.0,0.0003757,5]
[340182715,1728786640796,-1000.0,0.0003757,5]
[340182716,1728786640805,-1000.0,0.0003757,5]
[340182717,1728786640814,-1000.0,0.0003759,5]
[340182718,1728786640823,-453.63817819,0.000378,4]
[340182719,1728786640833,-174.298,0.00038013,50]
[340182720,1728786640845,-453.63817819,0.0003815,4]
[340182721,1728786640856,-7203.7842116,0.00038618,2]
[340182722,1728786640868,-560.0,0.00038753,5]
[340182723,1728786640878,-159.5089162,0.00038795,7]
[340182724,1728786640888,-738.09,0.0003898,3]
[340182725,1728786640899,-400.0,0.00039,120]
[340182726,1728786640908,-26082.95271856,0.00039,2]
[340182727,1728786640918,-1670.4,0.00039563,10]
[340182728,1728786640928,-1500.0,0.00039573,5]
[340182729,1728786640940,-1387.19669118,0.00039573,5]
[340182730,1728786640951,-1500.0,0.00039573,5]
[340182731,1728786640960,-436.76077567,0.00039593,5]
[340182732,1728786640971,-349.29581076,0.00039734,2]
[340182733,1728786640982,-349.29581076,0.00039759,2]
[340182734,1728786640992,-2383.61,0.00039783,10]
[340182735,1728786641004,-349.29581076,0.00039784,2]
[340182736,1728786641014,-2860.34,0.00039784,10]
[340182737,1728786641025,-184.03500789,0.00039793,31]
[340182738,1728786641036,-421.50223233,0.00039793,31]
[340182739,1728786641046,-367.42811062,0.00039793,31]
[340182740,1728786641057,-211.24287909,0.00039793,31]
[340182741,1728786641068,-610.50032527,0.00039793,31]
[340182742,1728786641079,-127558.165613,0.00039794,5]
[340182743,1728786641089,-151.0,0.00039795,7]
[340182744,1728786641099,-150.112233,0.000398,7]
[340182745,1728786641111,-39956.28729126,0.00039804,6]
[340182746,1728786641254,170.856788,0.00034754,2]
[340182757,1728786643321,-116.37177871,0.00039774,10]
[340182758,1728786643688,-640.9348181,0.00039774,10]
[340182766,1728786710530,5000.0,0.00025,120]
[340182768,1728786777323,4041.35051309,0.00024,2]
[340182769,1728786785078,5000.0,0.00024,2]
[340182770,1728786800359,3106.01806734,0.00024,2]
[340182773,1728787365933,150.0,0.00024,120]
[340182775,1728787380862,150.0,0.00025,120]
[340182776,1728787441978,4421.774221,0.00022,2]
[340182778,1728787553135,-150.0,0.00026,120]
[340182779,1728787553158,-150.0,0.00028,120]
[340182780,1728787553183,-166.666666,0.00028568,2]
[340182781,1728787553209,-1014.95768195,0.00028674,2]
[340182783,1728787650110,-6213.6890001,0.00027317,2]
[340182784,1728787652152,-694.05537146,0.00027317,2]
[340182787,1728787749248,-167.45215,0.00026205,2]
[340182788,1728787749273,-250.0,0.00026897,2]
[340182789,1728787749299,-250.0,0.00026971,2]
[340182790,1728787749323,-501.92043,0.00027024,2]
[340182791,1728787749346,-250.0,0.00027045,2]
[340182792,1728787749369,-250.0,0.00027118,2]
[340182793,1728787749391,-1445.19236,0.00027172,2]
[340182794,1728787749412,-250.0,0.00027192,2]
[340182795,1728787749434,-250.0,0.00027266,2]
[340182796,1728787749457,-300.0,0.00027316,2]
[340182797,1728787749480,-300.0,0.00027316,2]
[340182798,1728787749502,-13859.91447814,0.00027317,2]
[340182799,1728787749523,-250.0,0.0002734,2]
[340182800,1728787749663,-250.0,0.00027414,2]
[340182801,1728787749687,-250.0,0.00027487,2]
[340182802,1728787749710,-250.0,0.00027561,2]
[340182803,1728787749734,-250.0,0.00027635,2]
[340182804,1728787749758,-250.0,0.00027709,2]
[340182805,1728787749781,-250.0,0.00027782,2]
[340182806,1728787749804,-250.0,0.00027856,2]
[340182807,1728787749826,-489.69957262,0.00027907,2]
[340182808,1728787749850,-250.0,0.0002793,2]
[340182809,1728787749873,-250.0,0.00028004,2]
[340182810,1728787749894,-2233.23492261,0.00028007,2]
[340182811,1728787749917,-250.0,0.00028078,2]
[340182812,1728787749942,-5233.229301,0.00028087,2]
[340182813,1728787749968,-396.9784862,0.00028087,2]
[340182814,1728787749991,-250.0,0.00028151,2]
[340182815,1728787750017,-250.0,0.00028225,2]
[340182816,1728787750042,-250.0,0.00028299,2]
[340182817,1728787750067,-177.37226895,0.00028617,2]
[340182818,1728787750092,-7979.37220439,0.00028672,2]
[340182819,1728787750115,-1302.71988035,0.00028674,2]
[340182820,1728787750137,-3000.0,0.00028681,2]
[340182821,1728787750159,-500.0,0.0002875,2]
[340182822,1728787750182,-500.0,0.0002875,2]
[340182823,1728787750205,-550.0,0.0002875,2]
[340182824,1728787750227,-500.0,0.0002875,2]
[340182825,1728787750252,-500.0,0.0002875,2]
[340182826,1728787750274,-272.927324,0.0002875,2]
[340182827,1728787750297,-500.0,0.0002875,2]
[340182828,1728787750320,-500.0,0.0002875,2]
[340182829,1728787750342,-500.0,0.0002875,2]
[340182830,1728787750364,-500.0,0.0002875,2]
[340182831,1728787750387,-500.0,0.0002875,2]
[340182832,1728787750408,-11494.2621881,0.00028751,2]
[340182833,1728787750430,-5233.229301,0.00028772,2]
[340182834,1728787750451,-340.3744692,0.0002889,2]
[340182835,1728787750472,-5233.229301,0.00029457,2]
[340182836,1728787750495,-420.0,0.00029522,2]
[340182837,1728787750517,-166.666666,0.00029542,2]
[340182838,1728787750539,-150.0,0.0003,120]
[340182839,1728787750560,-218.0,0.0003,2]
[340182840,1728787750582,-642.04508223,0.0003,30]
[340182841,1728787750603,-500.0,0.0003,30]
[340182842,1728787750625,-500.0,0.0003,30]
[340182843,1728787750646,-500.0,0.0003,30]
[340182844,1728787750669,-500.0,0.0003,30]
[340182845,1728787750692,-500.0,0.0003,30]
[340182846,1728787750714,-500.0,0.0003,30]
[340182847,1728787750742,-594.89301099,0.0003,30]
[340182848,1728787750765,-420.0,0.00030048,2]
[340182849,1728787750787,-500.0,0.00030275,5]
[340182850,1728787750809,-500.0,0.00030275,2]
[340182851,1728787750832,-500.0,0.00030478,5]
[340182852,1728787750856,-166.666666,0.00030516,2]
[340182853,1728787750880,-5566.6281182,0.00030701,2]
[340182854,1728787750902,-173.015249,0.00030986,2]
[340182855,1728787750924,-3012.52,0.00031061,10]
[340182856,1728787750946,-2510.43,0.00031061,10]
[340182857,1728787750966,-625.1,0.0003107,2]
[340182858,1728787750990,-625.1,0.0003107,2]
[340182859,1728787751011,-625.1,0.0003107,2]
[340182860,1728787751033,-625.1,0.0003107,2]
[340182861,1728787751057,-625.1,0.0003107,2]
[340182862,1728787751080,-625.1,0.0003107,2]
[340182863,1728787751102,-625.1,0.0003107,2]
[340182864,1728787751125,-625.1,0.0003107,2]
[340182865,1728787751145,-421.50223233,0.0003107,2]
[340182866,1728787751169,-367.42811062,0.0003107,2]
[340182867,1728787751192,-610.50032527,0.0003107,2]
[340182868,1728787751216,-211.24287909,0.0003107,2]
[340182869,1728787751243,-184.03500789,0.0003107,2]
[340182870,1728787751267,-12747.32003773,0.00031071,4]
[340182871,1728787753127,-27480.93558,0.00031071,4]
[340182872,1728787754193,-20394.226447,0.00031071,4]
[340182873,1728787756131,-2232.71643275,0.00030971,2]
[340182874,1728787756157,-12807.71846247,0.00031071,4]
[340182875,1728787756180,-69709.00429773,0.00031071,4]
[340182876,1728787758135,-2092.03,0.00031061,10]
[340182877,1728787758157,-43029.2144492,0.00031071,4]
[340182878,1728787763127,-12822.13250107,0.00031071,4]
[340182879,1728787763152,-658.83199776,0.00031079,7]
[340182880,1728787763174,-998.00399202,0.0003108,2]
[340182881,1728787763196,-9891.70079444,0.00031081,2]
[340182882,1728787764120,-15008.29920556,0.00031081,2]
[340182883,1728787764141,-250.0,0.000312,2]
[340182884,1728787764163,-500.0,0.0003122,5]
[340182885,1728787764185,-500.0,0.0003122,5]
[340182886,1728787764206,-818.0549942,0.0003124,2]
[340182887,1728787764228,-166.666666,0.00031489,2]
[340182888,1728787764254,-327.33276299,0.00031645,5]
[340182889,1728787764276,-500.0,0.00031645,2]
[340182890,1728787764300,-587.0,0.00031907,2]
[340182891,1728787764323,-150.0,0.00032,120]
[340182892,1728787764344,-500.0,0.00032169,5]
[340182893,1728787764364,-7979.37220438,0.00032262,2]
[340182894,1728787764384,-166.666666,0.00032463,2]
[340182895,1728787765113,-286.54072458,0.00032877,2]
[340182896,1728787765134,-587.0,0.00033053,2]
[340182897,1728787768635,500.0,0.00030478,5]
[340182898,1728787769116,-150.0,0.00034,120]
[340182899,1728787769138,-811.80220295,0.00034142,2]
[340182900,1728787769160,-502.86298975,0.00034388,5]
[340182901,1728787769182,-823.0,0.00034483,2]
[340182902,1728787769206,-593.73995489,0.00034522,2]
[340182903,1728787769228,-689.29231526,0.00034749,2]
[340182904,1728787769251,-1111.0,0.00034849,120]
[340182905,1728787769272,-500.0,0.00034973,5]
[340182906,1728787769293,-500.0,0.00034973,5]
[340182907,1728787769314,-500.0,0.00034973,5]
[340182908,1728787769336,-578.71576027,0.00034973,5]
[340182909,1728787769458,-519.0449923,0.00034973,5]
[340182910,1728787769480,-738.09,0.00034977,3]
[340182911,1728787769505,-1743.35,0.00034977,10]
[340182912,1728787769528,-625.1,0.00034986,2]
[340182913,1728787769554,-268.0,0.00034987,2]
[340182914,1728787769582,-13430.33394144,0.00034987,5]
[340182915,1728787769895,500.0,0.0002875,2]
[340182916,1728787769925,500.0,0.0002875,2]
[340182917,1728787769953,500.0,0.0002875,2]
[340182918,1728787769983,500.0,0.0002875,2]
[340182919,1728787770014,500.0,0.0002875,2]
[340182920,1728787770039,500.0,0.0002875,2]
[340182921,1728787770065,301.65217748,0.0002875,2]
[340182922,1728787770104,500.0,0.0002875,2]
[340182923,1728787770130,500.0,0.0002875,2]
[340182924,1728787770156,178.83541305,0.0002875,2]
[340182925,1728787770184,500.0,0.0002875,2]
[340182926,1728787772114,-3417.85703999,0.00034987,5]
[340182927,1728787772526,392.29774712,0.0002875,2]
[340182928,1728787830633,250.0,0.00032614,2]
[340182957,1728787832150,-207.14818744,0.00034887,2]
[340182959,1728787832164,-457.7766715,0.00034973,5]
[340183072,1728787840418,-42.2233285,0.00034973,5]
[340183073,1728787840428,-541.23806229,0.00034973,5]
[340183074,1728787840439,-400.0,0.00034976,2]
[340183075,1728787840451,-400.0,0.00034976,2]
[340183076,1728787840464,-840.74,0.00034977,10]
[340183077,1728787840473,-1312.67,0.00034977,10]
[340183078,1728787840484,-1093.89,0.00034977,10]
[340183079,1728787840494,-30791.10536568,0.0003498,2]
[340183080,1728787840504,-257.19967743,0.00034986,7]
[340183081,1728787840516,-295.05156263,0.00034986,7]
[340183082,1728787840529,-427.35022769,0.00034986,7]
[340183083,1728787840538,-464.3150459,0.00034986,7]
[340183084,1728787840549,-450.0,0.00034986,7]
[340183085,1728787840559,-500.0,0.00034986,7]
[340183086,1728787840573,-500.0,0.00034986,7]
[340183087,1728787840583,-500.0,0.00034986,7]
[340183088,1728787840593,-500.0,0.00034986,7]
[340183089,1728787840603,-500.0,0.00034986,7]
[340183090,1728787840612,-500.0,0.00034986,7]
[340183091,1728787840621,-500.0,0.00034986,7]
[340183092,1728787840631,-500.0,0.00034986,7]
[340183093,1728787840640,-500.0,0.00034986,7]
[340183094,1728787840649,-500.0,0.00034986,7]
[340183095,1728787840659,-500.0,0.00034986,7]
[340183096,1728787840668,-500.0,0.00034986,7]
[340183097,1728787840678,-500.0,0.00034986,7]
[340183098,1728787840687,-500.0,0.00034986,7]
[340183099,1728787840696,-500.0,0.00034986,7]
[340183100,1728787840705,-500.0,0.00034986,7]
[340183101,1728787840715,-500.0,0.00034986,7]
[340183102,1728787840724,-500.0,0.00034986,7]
[340183103,1728787840735,-500.0,0.00034986,7]
[340183104,1728787840745,-600.0,0.00034986,7]
[340183105,1728787840753,-500.0,0.00034986,7]
[340183106,1728787840763,-500.0,0.00034986,7]
[340183107,1728787840773,-500.0,0.00034986,7]
[340183108,1728787840782,-500.0,0.00034986,7]
[340183109,1728787840792,-500.0,0.00034986,7]
[340183110,1728787840803,-500.0,0.00034986,7]
[340183111,1728787840813,-151.0,0.00034987,14]
[340183112,1728787840824,-151.0,0.00034987,14]